bitfinex/quotes_SOLUSD_20260108
["timestamp","ask_amount","ask_price","bid_price","bid_amount"]
[1767888339945,7.33245343,136.38,136.35,6.12439172]
[1767888340256,13.02815193,136.39,136.35,6.12439172]
[1767888341245,13.02815193,136.39,136.35,0.71272739]
[1767888341675,0.63219469,136.36,136.3,0.71272739]
[1767888341832,5.41166433,136.34,136.3,0.71272739]
[1767888342450,0.93267253,136.37,136.31,0.71272739]
[1767888342763,6.6801107,136.4,136.33,6.12439172]
[1767888342764,5.41166433,136.38,136.33,6.12439172]
[1767888342976,10.86117412,136.37,136.34,0.71272739]
[1767888343268,7.33460466,136.34,136.3,0.71272739]
[1767888343436,5.41166433,136.33,136.3,0.71272739]
[1767888344451,7.33460466,136.34,136.3,0.71272739]
[1767888344642,12.74626899,136.34,136.3,0.71272739]
[1767888345042,12.716269,136.34,136.3,0.71272739]
[1767888345435,12.74598008,136.35,136.3,6.12439172]
[1767888345748,5.41166433,136.34,136.3,0.71272739]
[1767888345947,5.41166433,136.33,136.3,0.71272739]
[1767888346158,5.41166433,136.33,136.28,13.46211221]
[1767888346362,6.1290117,136.37,136.33,0.71272739]
[1767888346573,1e-08,136.39,136.36,5.41166433]
[1767888346739,0.099,136.41,136.38,5.41166433]
[1767888347055,0.099,136.41,136.4,5.41166433]
[1767888347958,0.099,136.41,136.38,5.41166433]
[1767888348146,0.099,136.41,136.39,5.41166433]
[1767888348462,0.099,136.41,136.37,0.71272739]
[1767888348646,0.099,136.41,136.34,5.41166433]
[1767888348647,5.41166433,136.39,136.34,5.41166433]
[1767888348954,5.41166433,136.38,136.33,26.83918368]
[1767888349255,0.28432314,136.42,136.33,26.83918368]
[1767888349256,14.31820758,136.42,136.36,6.12439172]
[1767888349431,10.86487332,136.41,136.36,0.71272739]
[1767888349636,10.86487332,136.41,136.36,13.45785871]
[1767888349637,12.74256836,136.41,136.36,13.45785871]
[1767888350044,12.74256836,136.41,136.36,0.71272739]
[1767888350241,5.45364319,136.4,136.36,6.12439172]
[1767888350443,12.74256836,136.41,136.36,6.12439172]
[1767888350732,12.74256836,136.41,136.36,13.45791371]
[1767888350937,5.41166433,136.42,136.38,0.71272739]
[1767888351245,7.33019424,136.43,136.39,5.41166433]
[1767888351433,5.41166433,136.42,136.37,6.12439172]
[1767888351632,5.41166433,136.42,136.38,1.71272739]
[1767888352238,7.98407868,136.43,136.38,1.71272739]
[1767888352439,5.41166433,136.42,136.38,7.12439172]
[1767888352855,7.98273197,136.45,136.4,5.41166433]
[1767888353061,5.41166433,136.44,136.4,5.41166433]
[1767888353556,12.74090417,136.44,136.4,5.41166433]
[1767888353748,12.74090417,136.44,136.39,6.12439172]
[1767888353953,7.32923984,136.44,136.39,0.71272739]
[1767888354156,7.32923984,136.44,136.4,6.12439172]
[1767888355159,0.65388444,136.43,136.4,5.41166433]
[1767888355462,7.32867232,136.46,136.42,5.41166433]
[1767888355663,0.65388444,136.45,136.4,0.71272739]
[1767888355861,0.65388444,136.45,136.38,32.7102738]
[1767888355862,0.65388444,136.45,136.39,7.33171608]
[1767888356068,0.65388444,136.45,136.41,5.41166433]
[1767888356268,31.06072357,136.46,136.38,14.38]
[1767888356269,0.65388444,136.41,136.38,14.38]
[1767888356443,0.65388444,136.44,136.38,15.09272739]
[1767888356643,5.41166433,136.42,136.39,0.71272739]
[1767888356840,5.41166433,136.43,136.39,0.71272739]
[1767888357463,26.30294368,136.46,136.41,6.12439172]
[1767888357669,31.71460801,136.46,136.41,6.12439172]
[1767888357861,31.71460801,136.46,136.41,0.71272739]
[1767888358062,5.41166433,136.44,136.4,0.71272739]
[1767888359053,5.41166433,136.43,136.38,7.12439172]
[1767888359575,7.33030347,136.42,136.39,6.12439172]
[1767888359755,7.33030347,136.42,136.4,5.41166433]
[1767888359959,7.33030347,136.42,136.39,6.12439172]
[1767888360854,7.33030347,136.42,136.39,0.71272739]
[1767888361050,7.33000792,136.43,136.39,6.12439172]
[1767888361774,7.33000792,136.43,136.4,5.41166433]
[1767888361951,7.33000792,136.43,136.4,0.71272739]
[1767888362152,7.33000792,136.43,136.4,6.12439172]
[1767888362349,7.33000792,136.43,136.38,1.68900605]
[1767888362350,26.30808906,136.43,136.38,1.68900605]
[1767888362553,5.41166433,136.42,136.38,1.68900605]
[1767888363158,5.41166433,136.42,136.38,7.10067038]
[1767888363676,13.38,136.46,136.38,1.0]
[1767888363677,13.39617086,136.41,136.38,1.0]
[1767888363872,6.06533002,136.39,136.34,0.68900605]
[1767888364080,5.41166433,136.38,136.34,0.68900605]
[1767888364978,5.41166433,136.38,136.34,6.10067038]
[1767888365165,5.41166433,136.39,136.35,0.68900605]
[1767888365368,26.31160864,136.41,136.35,6.10067038]
[1767888365562,7.33191582,136.39,136.35,0.68900605]
[1767888365767,12.71358016,136.39,136.35,0.68900605]
[1767888366279,5.46936791,136.38,136.35,6.10067038]
[1767888366475,7.30191583,136.39,136.35,6.10067038]
[1767888366861,12.71358016,136.39,136.35,0.68900605]
[1767888367066,12.71358016,136.39,136.35,6.10067038]
[1767888367267,5.41166433,136.37,136.33,14.0532035]
[1767888367464,5.41166433,136.36,136.33,14.0532035]
[1767888367665,7.33319453,136.37,136.33,0.6732035]
[1767888367860,12.74485886,136.37,136.33,0.6732035]
[1767888368072,7.33084084,136.41,136.36,0.6732035]
[1767888368266,7.33084084,136.41,136.35,5.41166433]
[1767888368267,11.59480572,136.4,136.35,5.41166433]
[1767888368459,6.12552723,136.4,136.35,5.41166433]
[1767888369071,0.7138629,136.4,136.35,5.41166433]
[1767888369582,0.7138629,136.4,136.34,13.38]
[1767888369583,0.7138629,136.4,136.36,5.41166433]
[1767888369770,7.33191582,136.39,136.36,5.41166433]
[1767888369972,7.33191582,136.39,136.34,13.38]
[1767888370163,7.33191582,136.39,136.35,5.41166433]
[1767888370560,7.33191582,136.39,136.35,6.08486783]
[1767888370759,8.04546445,136.4,136.36,5.41166433]
[1767888370960,5.4710471,136.39,136.36,5.41166433]
[1767888371259,13.45712878,136.4,136.35,6.08486783]
[1767888371460,5.47105371,136.39,136.35,6.08486783]
[1767888371666,13.45712878,136.4,136.35,6.08486783]
[1767888371868,12.80322538,136.39,136.35,6.08486783]
[1767888372181,8.04603348,136.39,136.35,5.41166433]
[1767888372680,0.7138629,136.36,136.32,5.41166433]
[1767888372976,5.41166433,136.37,136.33,0.6732035]
[1767888373392,6.12552723,136.38,136.33,6.08486783]
[1767888373601,0.8138629,136.5,136.41,0.28432314]
[1767888373797,5.4674775,136.49,136.48,5.41166433]
[1767888373962,0.7138629,136.52,136.48,5.41166433]
[1767888374160,0.7138629,136.52,136.45,18.32111653]
[1767888374161,5.41166433,136.49,136.32,7.98631521]
[1767888374361,0.7138629,136.47,136.42,5.41166433]
[1767888374584,0.7138629,136.47,136.43,5.41166433]
[1767888374965,0.7138629,136.46,136.41,5.41166433]
[1767888375394,6.12552723,136.42,136.37,5.41166433]
[1767888375595,5.46483627,136.41,136.36,12.74485572]
[1767888375765,6.12552723,136.42,136.37,5.41166433]
[1767888375966,5.46457127,136.41,136.37,5.41166433]
[1767888376179,6.12552723,136.41,136.36,5.41166433]
[1767888376365,0.7138629,136.41,136.37,5.41166433]
[1767888376574,13.66432314,136.44,136.34,18.47798822]
[1767888376575,0.7138629,136.43,136.39,5.41166433]
[1767888376987,6.12552723,136.43,136.39,5.41166433]
[1767888377378,13.45532037,136.43,136.39,5.41166433]
[1767888377563,0.7138629,136.52,136.43,6.6801107]
[1767888377768,8.38710784,136.53,136.4,18.79166433]
[1767888377769,0.2,136.53,136.51,5.41166433]
[1767888378284,7.52466869,136.53,136.51,5.41166433]
[1767888378487,0.1,136.54,136.52,5.41166433]
[1767888378783,6.12552723,136.58,136.53,5.41166433]
[1767888378976,0.7138629,136.58,136.53,5.41166433]
[1767888379163,6.12552723,136.58,136.53,5.41166433]
[1767888379364,6.12552723,136.58,136.45,7.32828108]
[1767888379365,6.12552723,136.54,136.45,7.32828108]
[1767888379564,6.12552723,136.52,136.44,20.70904326]
[1767888379780,5.41166433,136.51,136.47,5.41166433]
[1767888380177,6.12552723,136.52,136.47,5.41166433]
[1767888380380,0.7138629,136.54,136.48,5.41166433]
[1767888380586,13.38,136.55,136.5,5.41166433]
[1767888380888,5.41166433,136.53,136.48,5.41166433]
[1767888381389,7.32493407,136.52,136.48,5.41166433]
[1767888381584,12.7365984,136.52,136.48,5.41166433]
[1767888381888,6.12552723,136.64,136.52,0.28432314]
[1767888382085,0.7138629,136.62,136.52,13.66432314]
[1767888382292,0.7138629,136.61,136.58,5.41166433]
[1767888382792,0.7138629,136.61,136.53,6.6801107]
[1767888382968,0.7138629,136.6,136.56,5.41166433]
[1767888383364,6.12552723,136.58,136.54,5.41166433]
[1767888383577,0.7138629,136.58,136.54,5.41166433]
[1767888384892,0.38432314,136.63,136.58,0.6732035]
[1767888384893,0.1,136.63,136.58,0.6732035]
[1767888385089,3.92127038,136.73,136.58,0.6732035]
[1767888385090,5.41166433,136.68,136.62,5.41166433]
[1767888385298,18.79166433,136.68,136.63,5.41166433]
[1767888386182,26.10816774,136.68,136.63,5.41166433]
[1767888386377,5.41166433,136.68,136.63,12.73065571]
[1767888386582,7.31492447,136.71,136.66,5.41166433]
[1767888386886,5.41166433,136.7,136.63,26.23044631]
[1767888387075,5.41166433,136.7,136.65,5.41166433]
[1767888387276,18.79166433,136.7,136.65,5.41166433]
[1767888387493,13.38,136.7,136.66,5.41166433]
[1767888387791,0.1,136.72,136.69,5.41166433]
[1767888388298,0.1,136.72,136.67,7.3168947]
[1767888388504,0.1,136.72,136.66,0.6138629]
[1767888388505,0.1,136.72,136.68,6.02552723]
[1767888388804,14.95975089,136.78,136.72,5.41166433]
[1767888388982,14.95975089,136.78,136.7,0.5138629]
[1767888388983,14.95975089,136.78,136.75,5.41166433]
[1767888389293,6.12552723,136.77,136.7,0.5138629]
[1767888389473,6.12552723,136.73,136.66,25.61094064]
[1767888389789,5.41166433,136.72,136.67,5.41166433]
[1767888389970,6.12552723,136.69,136.61,0.5138629]
[1767888390173,5.41166433,136.67,136.61,0.5138629]
[1767888390472,7.59926893,136.71,136.66,5.41166433]
[1767888390473,0.7138629,136.7,136.66,5.41166433]
[1767888390698,13.36,136.71,136.66,5.41166433]
[1767888390999,7.3138354,136.73,136.68,5.41166433]
[1767888391000,5.41166433,136.73,136.68,5.41166433]
[1767888391501,5.41166433,136.73,136.69,5.41166433]
[1767888391676,5.41166433,136.73,136.67,5.41166433]
[1767888391677,5.41166433,136.72,136.67,5.41166433]
[1767888391878,5.41166433,136.72,136.66,0.5138629]
[1767888391879,5.41166433,136.71,136.66,5.41166433]
[1767888392179,17.76872812,136.87,136.71,7.31475385]
[1767888392180,26.79710793,136.77,136.71,7.31475385]
[1767888392376,5.41166433,136.75,136.71,7.31475385]
[1767888392573,13.36,136.74,136.71,12.72641818]
[1767888392800,0.7138629,136.77,136.71,7.31475385]
[1767888392982,13.36,136.76,136.73,5.41166433]
[1767888393673,0.7138629,136.77,136.73,5.41166433]
[1767888393893,13.36,136.76,136.73,5.41166433]
[1767888395283,5.41166433,136.76,136.72,5.41166433]
[1767888395475,20.37141522,136.78,136.74,5.41166433]
[1767888395793,18.77166433,136.77,136.71,18.80074754]
[1767888395993,19.49503219,136.77,136.72,5.41166433]
[1767888396187,14.08336786,136.77,136.73,5.41166433]
[1767888396392,13.36,136.76,136.73,7.31361171]
[1767888396593,13.36,136.76,136.73,5.41166433]
[1767888396788,19.49503219,136.76,136.71,7.31460897]
[1767888396986,19.49503219,136.76,136.68,18.28957793]
[1767888396987,6.13503219,136.73,136.68,7.31619976]
[1767888397187,13.36,136.72,136.68,7.31619976]
[1767888397495,0.72336786,136.77,136.71,5.92552723]
[1767888397674,13.36,136.76,136.75,5.41166433]
[1767888398079,14.95975089,136.78,136.75,5.41166433]
[1767888398274,13.36,136.77,136.74,5.41166433]
[1767888398490,15.68311875,136.78,136.74,16.06062795]
[1767888398692,13.36,136.77,136.74,16.06062795]
[1767888399289,13.36,136.77,136.74,7.31310323]
[1767888399490,13.36,136.77,136.73,16.06112633]
[1767888399785,13.36,136.77,136.74,16.06054866]
[1767888399980,13.36,136.77,136.71,18.28604955]
[1767888399981,14.08336786,136.77,136.73,16.06115318]
[1767888400180,14.08336786,136.77,136.73,7.31362846]
[1767888400496,22.83089258,136.77,136.73,7.31362846]
[1767888400697,0.72336786,136.75,136.69,18.28908997]
[1767888401019,22.83089258,136.74,136.7,8.74752472]
[1767888401186,14.08336786,136.74,136.7,7.31518884]
[1767888401380,14.08336786,136.74,136.71,7.31473721]
[1767888402023,13.36,136.73,136.71,16.0621203]
[1767888402617,0.72336786,136.76,136.71,16.0621203]
[1767888402618,13.36,136.72,136.71,16.0621203]
[1767888402819,9.47089258,136.76,136.71,16.0621203]
[1767888403027,14.95975089,136.78,136.71,16.0621203]
[1767888403028,13.36,136.75,136.73,8.74752472]
[1767888403189,9.47089258,136.77,136.67,0.73168947]
[1767888403390,9.47089258,136.72,136.67,8.74752472]
[1767888403596,13.36,136.71,136.67,8.74752472]
[1767888403898,22.83089258,136.72,136.68,8.74752472]
[1767888404088,14.95975089,136.78,136.71,16.57596769]
[1767888404294,8.74752472,136.77,136.73,8.74752472]
[1767888404501,8.74752472,136.75,136.7,16.06260392]
[1767888404712,8.74752472,136.74,136.7,7.3150792]
[1767888405104,22.10752472,136.74,136.7,7.3150792]
[1767888405619,8.74752472,136.75,136.7,34.3508263]
[1767888405797,13.36,136.76,136.72,8.74752472]
[1767888406299,13.36,136.76,136.7,25.60330158]
[1767888406300,14.95975089,136.78,136.75,8.74752472]
[1767888406503,14.95975089,136.78,136.77,8.74752472]
[1767888406803,14.95975089,136.78,136.76,8.74752472]
[1767888407008,14.95975089,136.78,136.77,7.31154492]
[1767888407317,9.47089258,136.81,136.77,16.05906964]
[1767888407520,18.27020653,136.84,136.77,16.05906964]
[1767888407521,0.72336786,136.84,136.8,8.74752472]
[1767888407905,0.31125736,136.83,136.79,8.74752472]
[1767888408303,0.31125736,136.83,136.79,8.02252472]
[1767888408518,8.74752472,136.85,136.8,8.74752472]
[1767888408820,8.74752472,136.84,136.8,8.74752472]
[1767888409021,8.74752472,136.84,136.81,7.3094072]
[1767888409319,8.74752472,136.83,136.79,9.4427149]
[1767888409820,164.51276924,136.89,136.81,0.69519018]
[1767888409998,0.1,136.9,136.86,9.4427149]
[1767888410305,8.74752472,136.89,136.84,0.69519018]
[1767888410513,8.74752472,136.87,136.84,0.69519018]
[1767888410713,8.74752472,136.87,136.83,8.74752472]
[1767888410907,8.74752472,136.86,136.82,0.69519018]
[1767888411097,8.74752472,136.85,136.81,7.309074]
[1767888411302,8.74752472,136.84,136.81,7.30937893]
[1767888411509,8.74752472,136.84,136.8,0.69519018]
[1767888411510,8.74752472,136.84,136.82,7.30880602]
[1767888411704,8.74752472,136.84,136.8,0.69519018]
[1767888411911,25.78124677,136.87,136.8,0.69519018]
[1767888411912,39.14124677,136.87,136.8,8.00479716]
[1767888412235,8.74752472,136.81,136.76,0.69519018]
[1767888412518,8.74752472,136.78,136.74,0.69519018]
[1767888412722,8.74752472,136.78,136.75,7.31224149]
[1767888413228,8.74752472,136.79,136.75,8.00743167]
[1767888414309,20.64957266,136.81,136.75,8.00743167]
[1767888414495,8.74752472,136.8,136.77,0.69519018]
[1767888415194,8.74752472,136.79,136.75,8.00765307]
[1767888415397,0.10012632,136.81,136.74,7.31300262]
[1767888415600,8.74752472,136.78,136.74,7.31300262]
[1767888415807,0.10012632,136.81,136.74,7.31300262]
[1767888416007,8.74752472,136.78,136.74,8.0081928]
[1767888416607,8.74752472,136.77,136.74,8.0081928]
[1767888417109,8.74752472,136.76,136.72,0.69519018]
[1767888417420,7.31047591,136.79,136.72,0.69519018]
[1767888417619,8.74752472,136.77,136.73,0.69519018]
[1767888418113,8.74752472,136.77,136.74,0.69519018]
[1767888418314,8.74752472,136.78,136.74,0.69519018]
[1767888418719,8.74752472,136.76,136.73,7.31351582]
[1767888418923,8.74752472,136.75,136.72,0.69519018]
[1767888419132,8.74752472,136.74,136.7,0.69519018]
[1767888419504,13.34,136.77,136.7,0.69519018]
[1767888419505,7.31271998,136.75,136.7,0.69519018]
[1767888419721,8.74752472,136.73,136.7,0.69519018]
[1767888420324,7.31271998,136.75,136.7,8.01046272]
[1767888420624,8.74752472,136.74,136.7,0.69519018]
[1767888420932,8.74752472,136.74,136.7,8.01047603]
[1767888421120,7.31220279,136.76,136.7,8.01047603]
[1767888421320,8.74752472,136.75,136.71,9.4427149]
[1767888421828,8.74752472,136.75,136.71,0.69519018]
[1767888422025,8.74752472,136.74,136.69,16.75833215]
[1767888422231,8.74752472,136.74,136.7,0.70676124]
[1767888422829,8.74752472,136.72,136.68,8.02283616]
[1767888423034,8.74752472,136.7,136.66,8.02386772]
[1767888423336,8.74752472,136.7,136.66,0.70676124]
[1767888423709,8.74752472,136.7,136.66,8.02416428]
[1767888423905,0.37590178,136.76,136.69,0.70676124]
[1767888424105,8.74752472,136.75,136.7,8.74752472]
[1767888424310,0.37590178,136.76,136.71,8.74752472]
[1767888424533,0.37590178,136.76,136.71,0.70676124]
[1767888424827,0.65524878,136.75,136.71,8.74752472]
[1767888425033,0.65807047,136.77,136.73,8.74752472]
[1767888425206,0.65807047,136.77,136.72,8.74752472]
[1767888425410,7.31215185,136.76,136.72,8.74752472]
[1767888425611,0.65524878,136.75,136.7,22.08752472]
[1767888425810,0.37869525,136.74,136.7,8.74752472]
[1767888426020,0.37869525,136.74,136.69,7.31550743]
[1767888426021,9.12621997,136.74,136.69,16.06303215]
[1767888426338,0.37869525,136.74,136.7,8.74752472]
[1767888426835,8.74752472,136.77,136.72,9.45428596]
[1767888427035,16.05890502,136.78,136.73,8.74752472]
[1767888427215,14.01807047,136.79,136.74,8.74752472]
[1767888427216,16.71625417,136.79,136.74,8.74752472]
[1767888427837,7.96872945,136.79,136.74,8.74752472]
[1767888428134,7.96872945,136.79,136.74,9.45428596]
[1767888428135,16.71625417,136.79,136.74,9.45428596]
[1767888428432,0.37590178,136.78,136.74,8.08565726]
[1767888428738,0.37590178,136.78,136.75,8.74752472]
[1767888429033,16.05662453,136.82,136.77,9.45428596]
[1767888429227,16.05662453,136.82,136.77,16.76574596]
[1767888429437,16.05662453,136.82,136.77,9.45428596]
[1767888429628,8.74752472,136.81,136.77,0.70676124]
[1767888429831,8.74752472,136.81,136.75,14.04676124]
[1767888430141,8.74752472,136.79,136.75,13.34]
[1767888430325,8.74752472,136.79,136.74,0.70676124]
[1767888430520,8.85167483,136.78,136.72,0.70676124]
[1767888430723,5.43702671,136.77,136.72,0.70676124]
[1767888430920,0.28432314,136.81,136.74,9.45428596]
[1767888431123,5.43700354,136.8,136.76,8.74752472]
[1767888431326,16.05724787,136.81,136.75,8.01922112]
[1767888431541,5.44045961,136.8,136.76,8.74752472]
[1767888431709,34.33076588,136.81,136.76,8.74752472]
[1767888431914,14.18824486,136.8,136.76,8.74752472]
[1767888432116,8.74752472,136.8,136.76,8.74752472]
[1767888432317,8.74752472,136.8,136.75,8.01936248]
[1767888432524,8.74752472,136.8,136.76,8.74752472]
[1767888432728,7.40802764,136.82,136.77,8.74752472]
[1767888433022,5.4426055,136.81,136.78,8.74752472]
[1767888433219,14.19116825,136.8,136.76,13.34]
[1767888433442,8.74752472,136.8,136.76,13.34]
[1767888433942,8.74752472,136.79,136.76,13.34]
[1767888434153,7.3094072,136.81,136.76,22.08752472]
[1767888434318,5.4443058,136.8,136.76,22.08752472]
[1767888434514,16.05693192,136.81,136.76,22.08752472]
[1767888434721,5.44378697,136.8,136.76,29.39957238]
[1767888434933,7.3094072,136.81,136.77,8.74752472]
[1767888435139,7.30811819,136.84,136.79,9.46080839]
[1767888435454,5.4429391,136.83,136.8,8.74752472]
[1767888435743,7.30811819,136.84,136.8,8.74752472]
[1767888435916,5.4451379,136.83,136.79,0.71328367]
[1767888436120,7.30811819,136.84,136.79,9.46080839]
[1767888436335,5.44474273,136.83,136.79,9.46080839]
[1767888436524,7.30811819,136.84,136.79,16.77104928]
[1767888436717,5.4451169,136.83,136.8,8.74752472]
[1767888436920,7.40711819,136.84,136.79,8.74752472]
[1767888437149,5.44514625,136.83,136.79,8.74752472]
[1767888437332,16.15464291,136.84,136.79,8.74752472]
[1767888437525,18.26914097,136.85,136.81,8.74752472]
[1767888437526,7.30741205,136.85,136.81,8.74752472]
[1767888437732,9.0234265,136.86,136.81,8.74752472]
[1767888437733,5.44414261,136.84,136.81,8.74752472]
[1767888437938,7.3069213,136.86,136.82,8.74752472]
[1767888438138,5.44394695,136.85,136.82,8.74752472]
[1767888438342,16.05396787,136.87,136.82,8.74752472]
[1767888438523,14.18981214,136.86,136.81,22.80080839]
[1767888438722,5.44228742,136.85,136.81,22.80080839]
[1767888438918,14.18981214,136.85,136.81,13.34]
[1767888439143,8.74752472,136.86,136.81,22.80080839]
[1767888439340,16.05447756,136.86,136.81,22.80080839]
[1767888439541,7.30695284,136.86,136.82,0.71328367]
[1767888439847,5.44076665,136.85,136.82,0.71328367]
[1767888440020,16.05447756,136.86,136.82,0.71328367]
[1767888440220,5.43997208,136.85,136.82,0.71328367]
[1767888440426,16.05447756,136.86,136.82,0.71328367]
[1767888440647,5.43949563,136.85,136.82,0.71328367]
[1767888440833,16.05447756,136.86,136.82,0.71328367]
[1767888442132,8.74752472,136.84,136.81,13.34]
[1767888442333,8.74752472,136.82,136.78,0.71328367]
[1767888442542,8.74752472,136.81,136.78,0.71328367]
[1767888443748,16.05746624,136.8,136.76,0.71328367]
[1767888444119,8.74752472,136.8,136.76,8.02535773]
[1767888444327,7.30961186,136.81,136.77,0.71328367]
[1767888444750,8.74752472,136.8,136.76,7.03617228]
[1767888444955,8.74752472,136.77,136.66,0.71328367]
[1767888445251,8.74752472,136.7,136.66,8.03069615]
[1767888445464,8.74752472,136.7,136.67,0.71328367]
[1767888445636,8.74752472,136.69,136.67,0.71328367]
[1767888445840,8.74752472,136.68,136.65,0.71328367]
[1767888446131,8.74752472,136.69,136.65,0.71328367]
[1767888446334,8.74752472,136.69,136.62,31.63823089]
[1767888446335,18.28286486,136.75,136.67,8.03017304]
[1767888446540,8.74752472,136.73,136.68,0.71328367]
[1767888447254,8.74752472,136.72,136.68,0.71328367]
[1767888447550,8.74752472,136.73,136.69,9.46080839]
[1767888447746,16.06142832,136.73,136.69,0.71328367]
[1767888447934,8.74752472,136.74,136.7,0.71328367]
[1767888448140,8.74752472,136.73,136.7,0.71328367]
[1767888449746,0.28432314,136.78,136.7,0.71328367]
[1767888449946,8.74752472,136.73,136.7,0.71328367]
[1767888450140,8.74752472,136.74,136.7,0.71328367]
[1767888450344,8.74752472,136.73,136.68,9.46080839]
[1767888450561,8.74752472,136.73,136.69,0.71328367]
[1767888451560,8.74752472,136.71,136.67,0.71328367]
[1767888451734,8.74752472,136.71,136.66,29.4047599]
[1767888451935,8.74752472,136.71,136.66,30.11804357]
[1767888452139,7.31422607,136.72,136.67,16.77765347]
[1767888452335,16.06128549,136.73,136.68,8.74752472]
[1767888453442,8.74752472,136.72,136.67,16.77765347]
[1767888453640,16.06193121,136.72,136.67,16.77765347]
[1767888453835,8.74752472,136.68,136.65,0.6935251]
[1767888454055,8.74752472,136.68,136.63,9.44104982]
[1767888454354,13.36,136.71,136.63,8.01219095]
[1767888454355,8.74752472,136.67,136.63,8.01219095]
[1767888454758,8.74752472,136.67,136.64,0.6935251]
[1767888454964,13.36,136.71,136.62,0.6935251]
[1767888454965,8.74752472,136.65,136.62,0.6935251]
[1767888455150,8.71752472,136.65,136.62,0.6935251]
[1767888455546,8.68752467,136.65,136.62,0.6935251]
[1767888455855,8.74752472,136.64,136.6,0.6935251]
[1767888456056,8.74752472,136.64,136.61,0.6935251]
[1767888456765,8.74752472,136.65,136.61,0.6935251]
[1767888457340,8.74752472,136.64,136.61,0.6935251]
[1767888458007,8.74752472,136.63,136.61,0.6935251]
[1767888458134,8.74752472,136.63,136.59,0.6935251]
[1767888458549,5.39577769,136.63,136.59,0.6935251]
[1767888459058,7.31819177,136.65,136.6,0.6935251]
[1767888459365,7.31819177,136.65,136.61,0.6935251]
[1767888459549,12.71396946,136.65,136.61,0.6935251]
[1767888460747,5.39577769,136.66,136.61,6.08930279]
[1767888460947,5.39577769,136.65,136.61,0.6935251]
[1767888461156,5.39577769,136.64,136.61,0.6935251]
[1767888461954,7.31903681,136.63,136.61,0.6935251]
[1767888462158,5.39577769,136.62,136.57,1e-08]
[1767888462356,5.39577769,136.58,136.56,0.2]
[1767888462558,5.39577769,136.57,136.54,0.2]
[1767888462756,5.39577769,136.59,136.54,13.6127878]
[1767888463067,5.39577769,136.59,136.55,8.01670353]
[1767888463276,5.39577769,136.59,136.55,0.6935251]
[1767888463476,5.39577769,136.58,136.55,0.6935251]
[1767888464068,13.36,136.61,136.55,0.6935251]
[1767888464069,5.39577769,136.59,136.55,0.6935251]
[1767888464672,25.62421262,136.59,136.54,0.2]
[1767888464980,5.39577769,136.57,136.54,0.8935251]
[1767888465181,5.39577769,136.58,136.54,0.8935251]
[1767888465383,5.39577769,136.59,136.56,0.6935251]
[1767888465780,5.39577769,136.58,136.54,8.21715531]
[1767888466160,5.39577769,136.57,136.54,0.8935251]
[1767888466371,5.39577769,136.57,136.5,36.62849963]
[1767888466372,6.6801107,136.58,136.49,0.7326544]
[1767888466570,5.39577769,136.52,136.48,8.02039913]
[1767888466869,5.39577769,136.53,136.48,13.41617682]
[1767888467078,5.39577769,136.55,136.51,0.6935251]
[1767888467386,5.39577769,136.56,136.51,6.08930279]
[1767888467679,5.39577769,136.55,136.51,0.6935251]
[1767888467983,5.39577769,136.55,136.51,8.01895279]
[1767888468189,5.39577769,136.56,136.51,13.41473048]
[1767888468564,5.39577769,136.55,136.51,8.01895279]
[1767888470287,5.39577769,136.56,136.51,13.41473048]
[1767888470493,12.71861901,136.56,136.51,13.41473048]
[1767888470691,5.39577769,136.55,136.51,0.6935251]
[1767888470880,0.7111296,136.57,136.52,0.6935251]
[1767888471081,5.39577769,136.59,136.54,6.08930279]
[1767888471269,5.39577769,136.6,136.55,5.39577769]
[1767888471677,5.39577769,136.59,136.54,6.08930279]
[1767888472078,5.39577769,136.59,136.55,7.32332478]
[1767888472596,5.39577769,136.6,136.55,12.71910247]
[1767888472788,7.32069866,136.6,136.55,12.71910247]
[1767888473004,12.71647635,136.6,136.55,12.71910247]
[1767888473186,5.39577769,136.59,136.54,0.6935251]
[1767888473695,5.39577769,136.59,136.54,6.08930279]
[1767888473870,5.39577769,136.58,136.53,12.71982395]
[1767888474191,5.39577769,136.57,136.52,12.72050456]
[1767888474390,5.39577769,136.57,136.52,13.41402966]
[1767888474890,5.39577769,136.58,136.53,12.72009594]
[1767888475296,6.10690729,136.58,136.53,12.72009594]
[1767888476593,5.39577769,136.57,136.53,8.01784335]
[1767888476812,6.10690729,136.58,136.53,13.41362104]
[1767888476986,0.7111296,136.58,136.54,5.39577769]
[1767888479809,8.03294395,136.58,136.54,5.39577769]
[1767888480105,13.42872164,136.58,136.53,6.08930279]
[1767888480895,13.42872164,136.58,136.53,13.41357786]
[1767888481092,6.10690729,136.58,136.54,7.32386046]
[1767888481289,6.10690729,136.58,136.53,13.41345681]
[1767888481489,13.42864122,136.58,136.53,13.41345681]
[1767888482082,7.32142621,136.59,136.54,6.08930279]
[1767888482288,13.42764968,136.6,136.55,6.09163888]
[1767888482495,13.42764968,136.6,136.55,0.69586119]
[1767888482807,12.71612354,136.61,136.56,6.09163888]
[1767888483208,5.39577769,136.61,136.57,6.09163888]